[Event "Live Chess"]
[Site "Chess.com"]
[Date "2023.05.21"]
[Round "-"]
[White "LiamBellwood"]
[Black "EdenHazard8"]
[Result "1-0"]
[WhiteElo "1909"]
[BlackElo "1922"]
[TimeControl "300"]
[EndTime "4:55:11 PDT"]
[Termination "LiamBellwood won by resignation"]

1. d4 {[%clk 0:04:59.4]} 1... Nf6 {[%clk 0:04:58.1]} 2. Nc3 {[%clk 0:04:58.8]}
2... g6 {[%clk 0:04:58]} 3. Bf4 {[%clk 0:04:58.5]} 3... Bg7 {[%clk 0:04:57.6]}
4. Qd2 {[%clk 0:04:58.2]} 4... d5 {[%clk 0:04:57.1]} 5. e3 {[%clk 0:04:57.1]}
5... O-O {[%clk 0:04:56.3]} 6. Nf3 {[%clk 0:04:55.2]} 6... c5 {[%clk 0:04:55.4]}
7. Nb5 {[%clk 0:04:53.9]} 7... Ne4 {[%clk 0:04:52]} 8. Qd1 {[%clk 0:04:50]} 8...
Na6 {[%clk 0:04:48.7]} 9. a4 {[%clk 0:04:48.4]} 9... Re8 {[%clk 0:04:47.3]} 10.
c3 {[%clk 0:04:47.7]} 10... cxd4 {[%clk 0:04:45.8]} 11. exd4 {[%clk 0:04:47.6]}
11... Bg4 {[%clk 0:04:42.4]} 12. Be2 {[%clk 0:04:35.6]} 12... Bxf3 {[%clk
0:04:36.5]} 13. Bxf3 {[%clk 0:04:35.5]} 13... e5 {[%clk 0:04:34.4]} 14. dxe5
{[%clk 0:04:32.1]} 14... Bxe5 {[%clk 0:04:33]} 15. Bxe5 {[%clk 0:04:32]} 15...
Rxe5 {[%clk 0:04:32.7]} 16. O-O {[%clk 0:04:31]} 16... Nac5 {[%clk 0:04:29.7]}
17. Qd4 {[%clk 0:04:23.9]} 17... Qe7 {[%clk 0:04:24]} 18. Rad1 {[%clk
0:04:16.6]} 18... Nb3 {[%clk 0:04:16.4]} 19. Qd3 {[%clk 0:04:11]} 19... Nbc5
{[%clk 0:04:09.5]} 20. Qd4 {[%clk 0:04:06.5]} 20... Nb3 {[%clk 0:04:08.3]} 21.
Qd3 {[%clk 0:04:05.8]} 21... Nbc5 {[%clk 0:04:07.6]} 22. Qc2 {[%clk 0:03:58.8]}
22... Rc8 {[%clk 0:04:04.1]} 23. Nxa7 {[%clk 0:03:54.5]} 23... Rc7 {[%clk
0:04:01.8]} 24. Nb5 {[%clk 0:03:53.3]} 24... Rc8 {[%clk 0:04:00.7]} 25. Rfe1
{[%clk 0:03:40.7]} 25... Qh4 {[%clk 0:03:56.9]} 26. g3 {[%clk 0:03:34.8]} 26...
Qf6 {[%clk 0:03:55.4]} 27. Bg2 {[%clk 0:03:22.8]} 27... Rce8 {[%clk 0:03:33.7]}
28. f4 {[%clk 0:03:13.6]} 28... Rf5 {[%clk 0:03:27.6]} 29. Bh3 {[%clk
0:03:03.7]} 29... Rh5 {[%clk 0:03:26.2]} 30. Bg4 {[%clk 0:02:59.9]} 30... Rh6
{[%clk 0:03:11.3]} 31. Rxd5 {[%clk 0:02:56.5]} 31... Qb6 {[%clk 0:02:52.4]} 32.
Kg2 {[%clk 0:02:39.1]} 32... f5 {[%clk 0:02:43.3]} 33. Bf3 {[%clk 0:02:25.9]}
33... Nd3 {[%clk 0:02:41.8]} 34. Rxd3 {[%clk 0:02:11.7]} 1-0

[Event "Live Chess"]
[Site "Chess.com"]
[Date "2023.05.21"]
[Round "-"]
[White "Tushinskiy"]
[Black "Berdgross"]
[Result "1-0"]
[WhiteElo "2212"]
[BlackElo "667"]
[TimeControl "300"]
[EndTime "4:55:19 PDT"]
[Termination "Tushinskiy won by resignation"]

1. d4 {[%clk 0:04:57.4]} 1... d5 {[%clk 0:04:59.9]} 2. c3 {[%clk 0:04:57.2]}
2... e6 {[%clk 0:04:58.6]} 3. Nf3 {[%clk 0:04:57.1]} 3... Nc6 {[%clk 0:04:56.2]}
4. Bf4 {[%clk 0:04:55.8]} 4... Nf6 {[%clk 0:04:51.4]} 5. Bg3 {[%clk 0:04:54.2]}
5... Bd6 {[%clk 0:04:44.5]} 6. Nbd2 {[%clk 0:04:54.1]} 6... O-O {[%clk
0:04:40.3]} 7. Qc2 {[%clk 0:04:51.8]} 7... g6 {[%clk 0:04:36.9]} 8. e4 {[%clk
0:04:44.5]} 8... dxe4 {[%clk 0:04:35.1]} 9. Nxe4 {[%clk 0:04:44.4]} 9... Nxe4
{[%clk 0:04:33.9]} 10. Qxe4 {[%clk 0:04:44]} 10... Re8 {[%clk 0:04:26]} 11. Bd3
{[%clk 0:04:41.4]} 11... f5 {[%clk 0:04:21.3]} 12. Qe2 {[%clk 0:04:38.7]} 12...
e5 {[%clk 0:04:18.4]} 13. dxe5 {[%clk 0:04:35.2]} 13... Bxe5 {[%clk 0:04:17.1]}
14. Nxe5 {[%clk 0:04:28.6]} 14... Nxe5 {[%clk 0:04:12.4]} 15. Bxe5 {[%clk
0:04:23.7]} 15... Qd5 {[%clk 0:04:00.2]} 16. Bc4 {[%clk 0:04:19.5]} 16... Rxe5
{[%clk 0:03:43.1]} 17. Bxd5+ {[%clk 0:04:18.1]} 17... Rxd5 {[%clk 0:03:36.8]}
18. O-O {[%clk 0:04:15.8]} 18... Bd7 {[%clk 0:03:31.3]} 19. Rad1 {[%clk
0:04:10.8]} 19... Rxd1 {[%clk 0:03:28.7]} 20. Rxd1 {[%clk 0:04:10.7]} 20... Re8
{[%clk 0:03:22.8]} 21. Qc4+ {[%clk 0:04:08.2]} 21... Be6 {[%clk 0:03:20.5]} 22.
Qxc7 {[%clk 0:03:56.2]} 22... Bxa2 {[%clk 0:03:12.8]} 23. Rd8 {[%clk 0:03:54.1]}
23... Rxd8 {[%clk 0:03:10]} 24. Qxd8+ {[%clk 0:03:54]} 24... Kf7 {[%clk
0:03:07.7]} 25. Qc7+ {[%clk 0:03:46.2]} 25... Kf6 {[%clk 0:03:05.3]} 26. Qxh7
{[%clk 0:03:44.9]} 26... Bd5 {[%clk 0:02:56.7]} 27. f3 {[%clk 0:03:41.3]} 27...
Kg5 {[%clk 0:02:52.8]} 28. Kf2 {[%clk 0:03:39.5]} 28... f4 {[%clk 0:02:50.3]}
29. Qe7+ {[%clk 0:03:37.4]} 29... Kf5 {[%clk 0:02:47.8]} 30. Qd7+ {[%clk
0:03:34.9]} 30... Be6 {[%clk 0:02:45.4]} 31. Qxb7 {[%clk 0:03:32.3]} 31... Ke5
{[%clk 0:02:37.2]} 32. Qxa7 {[%clk 0:03:30.2]} 32... Kd5 {[%clk 0:02:32.7]} 33.
Qd4+ {[%clk 0:03:30.1]} 33... Kc6 {[%clk 0:02:23.6]} 34. Qxf4 {[%clk 0:03:29.1]}
1-0

[Event "Live Chess"]
[Site "Chess.com"]
[Date "2023.05.21"]
[Round "-"]
[White "CheckThis4"]
[Black "YrrriKharkiv"]
[Result "1-0"]
[WhiteElo "2509"]
[BlackElo "2067"]
[TimeControl "300"]
[EndTime "4:55:22 PDT"]
[Termination "CheckThis4 won by resignation"]

1. e4 {[%clk 0:04:56.8]} 1... Nf6 {[%clk 0:04:56]} 2. e5 {[%clk 0:04:53.2]} 2...
Nd5 {[%clk 0:04:55.1]} 3. d4 {[%clk 0:04:52.7]} 3... d6 {[%clk 0:04:53.7]} 4. c4
{[%clk 0:04:52.1]} 4... Nb6 {[%clk 0:04:52.6]} 5. exd6 {[%clk 0:04:51.5]} 5...
cxd6 {[%clk 0:04:51.4]} 6. Nc3 {[%clk 0:04:50.7]} 6... g6 {[%clk 0:04:50.7]} 7.
Be3 {[%clk 0:04:49.3]} 7... Bg7 {[%clk 0:04:49.7]} 8. Rc1 {[%clk 0:04:48.4]}
8... O-O {[%clk 0:04:48.2]} 9. b3 {[%clk 0:04:47.5]} 9... Nc6 {[%clk 0:04:47.1]}
10. d5 {[%clk 0:04:46]} 10... Ne5 {[%clk 0:04:44.4]} 11. Be2 {[%clk 0:04:44.9]}
11... Ned7 {[%clk 0:04:39.4]} 12. Nf3 {[%clk 0:04:42.4]} 12... Nf6 {[%clk
0:04:37.9]} 13. O-O {[%clk 0:04:41.1]} 13... Bg4 {[%clk 0:04:35.2]} 14. Nd4
{[%clk 0:04:36.3]} 14... Bxe2 {[%clk 0:04:33.3]} 15. Qxe2 {[%clk 0:04:32.4]}
15... a6 {[%clk 0:04:31.8]} 16. Rfe1 {[%clk 0:04:30.1]} 16... Nbd7 {[%clk
0:04:29.1]} 17. Nf3 {[%clk 0:04:25.7]} 17... Rb8 {[%clk 0:04:20]} 18. Ba7 {[%clk
0:04:23.9]} 18... Ra8 {[%clk 0:04:18.3]} 19. Bd4 {[%clk 0:04:22.7]} 19... Re8
{[%clk 0:04:14.8]} 20. Ne4 {[%clk 0:04:20.9]} 20... b5 {[%clk 0:04:08.3]} 21.
Neg5 {[%clk 0:04:16.4]} 21... bxc4 {[%clk 0:04:04.7]} 22. Nxf7 {[%clk
0:04:12.6]} 22... Kxf7 {[%clk 0:04:02.4]} 23. Qe6+ {[%clk 0:04:09.6]} 23... Kf8
{[%clk 0:04:01.3]} 24. Ng5 {[%clk 0:04:09.1]} 1-0

[Event "Live Chess"]
[Site "Chess.com"]
[Date "2023.05.21"]
[Round "-"]
[White "ViktorTheCoolBoy"]
[Black "zdanevych"]
[Result "1-0"]
[WhiteElo "2477"]
[BlackElo "1549"]
[TimeControl "300"]
[EndTime "4:55:24 PDT"]
[Termination "ViktorTheCoolBoy won by resignation"]

1. d4 {[%clk 0:04:58.1]} 1... d5 {[%clk 0:04:59.2]} 2. c4 {[%clk 0:04:57.1]}
2... c6 {[%clk 0:04:58.4]} 3. Nf3 {[%clk 0:04:53.2]} 3... a6 {[%clk 0:04:56.5]}
4. Qc2 {[%clk 0:04:46]} 4... Nf6 {[%clk 0:04:52.5]} 5. Bf4 {[%clk 0:04:42.1]}
5... g6 {[%clk 0:04:44.9]} 6. e3 {[%clk 0:04:41.1]} 6... Bf5 {[%clk 0:04:42.6]}
7. Qb3 {[%clk 0:04:39.9]} 7... dxc4 {[%clk 0:04:35.8]} 8. Bxc4 {[%clk
0:04:38.1]} 8... Nd5 {[%clk 0:04:09.4]} 9. Qxb7 {[%clk 0:04:32.2]} 9... Nd7
{[%clk 0:04:06]} 10. Qxc6 {[%clk 0:04:25.1]} 10... Qa5+ {[%clk 0:03:54]} 11.
Nbd2 {[%clk 0:04:18.7]} 11... Rd8 {[%clk 0:03:41.1]} 12. Qxd5 {[%clk 0:04:16]}
1-0

[Event "Live Chess"]
[Site "Chess.com"]
[Date "2023.05.21"]
[Round "-"]
[White "diana21strabt"]
[Black "HoarseyHorsey"]
[Result "0-1"]
[WhiteElo "1750"]
[BlackElo "1490"]
[TimeControl "300"]
[EndTime "4:55:27 PDT"]
[Termination "HoarseyHorsey won by resignation"]

1. e4 {[%clk 0:04:58.6]} 1... c5 {[%clk 0:04:58.9]} 2. Nf3 {[%clk 0:04:57.6]}
2... e6 {[%clk 0:04:57.6]} 3. d4 {[%clk 0:04:56.8]} 3... cxd4 {[%clk 0:04:56.5]}
4. Nxd4 {[%clk 0:04:56.1]} 4... Nf6 {[%clk 0:04:56]} 5. Nc3 {[%clk 0:04:55.4]}
5... Nc6 {[%clk 0:04:55.3]} 6. Be3 {[%clk 0:04:51.8]} 6... Bb4 {[%clk
0:04:53.7]} 7. Nxc6 {[%clk 0:04:46.6]} 7... bxc6 {[%clk 0:04:52.5]} 8. f3 {[%clk
0:04:39.4]} 8... d5 {[%clk 0:04:50.1]} 9. exd5 {[%clk 0:04:37.8]} 9... cxd5
{[%clk 0:04:50]} 10. Bb5+ {[%clk 0:04:34]} 10... Bd7 {[%clk 0:04:48.9]} 11.
Bxd7+ {[%clk 0:04:32.7]} 11... Qxd7 {[%clk 0:04:48.8]} 12. Bd4 {[%clk
0:04:28.7]} 12... Qe7 {[%clk 0:04:35]} 13. O-O {[%clk 0:04:25.2]} 13... e5
{[%clk 0:04:32.3]} 14. Re1 {[%clk 0:04:24]} 14... Nd7 {[%clk 0:04:21.9]} 15.
Nxd5 {[%clk 0:04:00.2]} 15... Qd6 {[%clk 0:04:15.2]} 16. Nxb4 {[%clk 0:03:56.7]}
16... O-O {[%clk 0:04:12]} 17. Bxe5 {[%clk 0:03:50.8]} 17... Qb6+ {[%clk
0:04:09.7]} 18. Qd4 {[%clk 0:03:42.6]} 18... Nxe5 {[%clk 0:04:00]} 19. Rxe5
{[%clk 0:03:41]} 19... Qxd4+ {[%clk 0:03:57.9]} 0-1

[Event "Live Chess"]
[Site "Chess.com"]
[Date "2023.05.21"]
[Round "-"]
[White "Mechhead7"]
[Black "mach247"]
[Result "1-0"]
[WhiteElo "1776"]
[BlackElo "1351"]
[TimeControl "300"]
[EndTime "4:55:35 PDT"]
[Termination "Mechhead7 won by resignation"]

1. e4 {[%clk 0:04:59.1]} 1... d5 {[%clk 0:04:59.3]} 2. exd5 {[%clk 0:04:58]}
2... Qxd5 {[%clk 0:04:59.2]} 3. Nc3 {[%clk 0:04:56.9]} 3... Qd8 {[%clk
0:04:55.8]} 4. d4 {[%clk 0:04:55.9]} 4... Nf6 {[%clk 0:04:54.6]} 5. Nf3 {[%clk
0:04:54.5]} 5... Bg4 {[%clk 0:04:53.1]} 6. h3 {[%clk 0:04:51.8]} 6... Bxf3
{[%clk 0:04:51.8]} 7. Qxf3 {[%clk 0:04:51.1]} 7... c6 {[%clk 0:04:51.4]} 8. Be3
{[%clk 0:04:42.9]} 8... e6 {[%clk 0:04:50.2]} 9. O-O-O {[%clk 0:04:41.6]} 9...
Bb4 {[%clk 0:04:49.3]} 10. Ne4 {[%clk 0:04:31.5]} 10... Nxe4 {[%clk 0:04:44.6]}
11. Qxe4 {[%clk 0:04:31.4]} 11... Qd5 {[%clk 0:04:43.3]} 12. Qxd5 {[%clk
0:04:23.1]} 12... cxd5 {[%clk 0:04:43.2]} 13. a3 {[%clk 0:04:21.8]} 13... Ba5
{[%clk 0:04:40.4]} 14. Kb1 {[%clk 0:04:20.7]} 14... Nc6 {[%clk 0:04:38.9]} 15.
c4 {[%clk 0:04:19.2]} 15... dxc4 {[%clk 0:04:36.1]} 16. Bxc4 {[%clk 0:04:17.9]}
16... O-O {[%clk 0:04:33.1]} 17. d5 {[%clk 0:04:14]} 17... exd5 {[%clk 0:04:31]}
18. Rxd5 {[%clk 0:04:09.3]} 18... Rfd8 {[%clk 0:04:14]} 19. Rhd1 {[%clk
0:04:08]} 19... Rxd5 {[%clk 0:04:10.1]} 20. Rxd5 {[%clk 0:04:07.9]} 20... Rc8
{[%clk 0:03:52.8]} 21. Rf5 {[%clk 0:03:46]} 21... Nd8 {[%clk 0:03:33.1]} 22.
Bxf7+ {[%clk 0:03:35.3]} 22... Nxf7 {[%clk 0:03:31.9]} 23. Rxa5 {[%clk
0:03:34.3]} 23... a6 {[%clk 0:03:28.8]} 24. Rd5 {[%clk 0:03:25.3]} 24... Rc6
{[%clk 0:02:57.4]} 25. Rd7 {[%clk 0:03:22.3]} 25... b5 {[%clk 0:02:56]} 26. Ra7
{[%clk 0:03:14]} 26... Ne5 {[%clk 0:02:50]} 27. Bd4 {[%clk 0:03:11.4]} 27... Nd3
{[%clk 0:02:44]} 28. Rxg7+ {[%clk 0:03:08.8]} 28... Kf8 {[%clk 0:02:41.5]} 29.
Rxh7 {[%clk 0:03:07.1]} 29... Rc1+ {[%clk 0:02:40.3]} 30. Ka2 {[%clk 0:03:05.9]}
30... Rc2 {[%clk 0:02:29.5]} 31. Kb3 {[%clk 0:02:47.7]} 31... Rc4 {[%clk
0:02:17.4]} 32. Be3 {[%clk 0:02:12]} 32... a5 {[%clk 0:02:10.7]} 33. Rh5 {[%clk
0:02:04.8]} 33... a4+ {[%clk 0:02:09.4]} 34. Ka2 {[%clk 0:02:03.4]} 34... Rc2
{[%clk 0:01:16.1]} 35. Rxb5 {[%clk 0:02:01.7]} 35... Nxf2 {[%clk 0:01:09.3]} 36.
Bxf2 {[%clk 0:02:00.7]} 36... Rxf2 {[%clk 0:01:08.6]} 37. Rg5 {[%clk 0:01:59.7]}
37... Kf7 {[%clk 0:01:06.9]} 38. h4 {[%clk 0:01:56.6]} 38... Kf6 {[%clk
0:01:05.5]} 39. g4 {[%clk 0:01:55.7]} 39... Rh2 {[%clk 0:00:57.8]} 40. Rf5+
{[%clk 0:01:49.2]} 40... Ke6 {[%clk 0:00:52]} 41. h5 {[%clk 0:01:48]} 41... Rg2
{[%clk 0:00:51.2]} 42. Rf4 {[%clk 0:01:45.9]} 42... Ke5 {[%clk 0:00:49.6]} 43.
Rxa4 {[%clk 0:01:44.7]} 43... Kf6 {[%clk 0:00:47.7]} 44. Rc4 {[%clk 0:01:32.6]}
44... Kg5 {[%clk 0:00:47]} 45. a4 {[%clk 0:01:31.1]} 1-0

[Event "Live Chess"]
[Site "Chess.com"]
[Date "2023.05.21"]
[Round "-"]
[White "WilliamofOrange16th"]
[Black "LiamClery2020"]
[Result "1/2-1/2"]
[WhiteElo "1865"]
[BlackElo "1998"]
[TimeControl "300"]
[EndTime "4:55:47 PDT"]
[Termination "Game drawn by agreement"]

1. e4 {[%clk 0:04:49.3]} 1... Nf6 {[%clk 0:04:59]} 2. Nc3 {[%clk 0:04:47.5]}
2... e5 {[%clk 0:04:56.6]} 3. Nf3 {[%clk 0:04:46.5]} 3... Nc6 {[%clk 0:04:55.9]}
4. Bb5 {[%clk 0:04:45.3]} 4... Bb4 {[%clk 0:04:54.8]} 5. Nd5 {[%clk 0:04:43.3]}
5... Bc5 {[%clk 0:04:46.7]} 6. d3 {[%clk 0:04:41.6]} 6... O-O {[%clk 0:04:45.6]}
7. O-O {[%clk 0:04:40.7]} 7... h6 {[%clk 0:04:44.7]} 8. h3 {[%clk 0:04:38.8]}
8... d6 {[%clk 0:04:43.4]} 9. c3 {[%clk 0:04:36.4]} 9... Nxd5 {[%clk 0:04:41.8]}
10. exd5 {[%clk 0:04:35.3]} 10... Ne7 {[%clk 0:04:41.7]} 11. c4 {[%clk
0:04:33.9]} 11... c6 {[%clk 0:04:39.9]} 12. dxc6 {[%clk 0:04:32.1]} 12... bxc6
{[%clk 0:04:39.8]} 13. Ba4 {[%clk 0:04:30.6]} 13... Bf5 {[%clk 0:04:38]} 14. Bc2
{[%clk 0:04:27.6]} 14... Ng6 {[%clk 0:04:35.3]} 15. Be3 {[%clk 0:04:25.5]} 15...
Bxe3 {[%clk 0:04:33.9]} 16. fxe3 {[%clk 0:04:24.9]} 16... Be6 {[%clk 0:04:31]}
17. b3 {[%clk 0:04:23.1]} 17... Nh4 {[%clk 0:04:29.8]} 18. Nxh4 {[%clk
0:04:17.1]} 18... Qxh4 {[%clk 0:04:29.7]} 19. Qf3 {[%clk 0:04:15.6]} 19... Rac8
{[%clk 0:04:26.7]} 20. d4 {[%clk 0:04:13.9]} 20... exd4 {[%clk 0:04:25.6]} 21.
exd4 {[%clk 0:04:12.9]} 21... Qxd4+ {[%clk 0:04:24.7]} 22. Kh1 {[%clk
0:04:12.1]} 22... d5 {[%clk 0:04:23.6]} 23. Rad1 {[%clk 0:04:11]} 23... Qc5
{[%clk 0:04:22.7]} 24. Qd3 {[%clk 0:04:07.7]} 24... g6 {[%clk 0:04:19.8]} 25.
Qd2 {[%clk 0:04:05.4]} 25... Kg7 {[%clk 0:04:17.7]} 26. cxd5 {[%clk 0:04:00.7]}
26... cxd5 {[%clk 0:04:15.3]} 27. Bb1 {[%clk 0:03:41]} 27... Qc3 {[%clk
0:04:12.9]} 28. Qf2 {[%clk 0:03:37.3]} 28... Rc7 {[%clk 0:03:58.5]} 1/2-1/2

[Event "Live Chess"]
[Site "Chess.com"]
[Date "2023.05.21"]
[Round "-"]
[White "chessfiction"]
[Black "sup3rm0nk3y"]
[Result "1-0"]
[WhiteElo "2308"]
[BlackElo "1333"]
[TimeControl "300"]
[EndTime "4:55:49 PDT"]
[Termination "chessfiction won by resignation"]

1. e4 {[%clk 0:04:59.8]} 1... c5 {[%clk 0:04:58.7]} 2. d4 {[%clk 0:04:59.7]}
2... cxd4 {[%clk 0:04:57.5]} 3. c3 {[%clk 0:04:59.6]} 3... dxc3 {[%clk
0:04:56.3]} 4. Nxc3 {[%clk 0:04:59.5]} 4... Nc6 {[%clk 0:04:55.3]} 5. Bg5 {[%clk
0:04:58.7]} 5... f6 {[%clk 0:04:53.9]} 6. Be3 {[%clk 0:04:57.3]} 6... e5 {[%clk
0:04:52.8]} 7. Bc4 {[%clk 0:04:56.5]} 7... Bb4 {[%clk 0:04:50.2]} 8. Qb3 {[%clk
0:04:55.4]} 8... Bxc3+ {[%clk 0:04:47.4]} 9. bxc3 {[%clk 0:04:55.3]} 9... Nge7
{[%clk 0:04:45.5]} 10. Bf7+ {[%clk 0:04:54]} 10... Kf8 {[%clk 0:04:43.9]} 11.
Bh5 {[%clk 0:04:53.1]} 11... d5 {[%clk 0:04:36.8]} 12. exd5 {[%clk 0:04:49.8]}
12... Qxd5 {[%clk 0:04:35.5]} 13. Bf3 {[%clk 0:04:41.6]} 13... Qxb3 {[%clk
0:04:33.5]} 14. axb3 {[%clk 0:04:41.5]} 14... Bd7 {[%clk 0:04:30.7]} 15. Ne2
{[%clk 0:04:40.2]} 15... Kf7 {[%clk 0:04:28.6]} 16. O-O {[%clk 0:04:39.2]} 16...
Rhd8 {[%clk 0:04:26.8]} 17. Bc5 {[%clk 0:04:37.5]} 17... Rac8 {[%clk 0:04:12.5]}
18. b4 {[%clk 0:04:34.7]} 18... b6 {[%clk 0:04:10.3]} 19. Be3 {[%clk 0:04:32.8]}
19... Rc7 {[%clk 0:04:03.2]} 20. Rfd1 {[%clk 0:04:23]} 20... Ke8 {[%clk
0:03:47.2]} 21. Ng3 {[%clk 0:04:16.6]} 21... g6 {[%clk 0:03:42.5]} 22. Ne4
{[%clk 0:04:15.7]} 22... Kf7 {[%clk 0:03:34.2]} 23. g4 {[%clk 0:04:09.8]} 23...
f5 {[%clk 0:03:20.1]} 24. Ng5+ {[%clk 0:04:04.6]} 24... Kg7 {[%clk 0:03:18.6]}
25. h4 {[%clk 0:03:59]} 25... h6 {[%clk 0:03:15.3]} 26. Bxc6 {[%clk 0:03:45.9]}
26... Nxc6 {[%clk 0:03:11]} 27. Nf3 {[%clk 0:03:23.5]} 27... fxg4 {[%clk
0:02:35.2]} 28. Nxe5 {[%clk 0:03:18.7]} 28... Nxe5 {[%clk 0:02:32.2]} 29. Bd4
{[%clk 0:03:18.2]} 29... Kf6 {[%clk 0:02:13.9]} 30. Re1 {[%clk 0:03:16]} 30...
Re8 {[%clk 0:02:12.1]} 31. Rxe5 {[%clk 0:03:09]} 31... Rxe5 {[%clk 0:02:09.8]}
32. Re1 {[%clk 0:03:08.6]} 1-0

[Event "Live Chess"]
[Site "Chess.com"]
[Date "2023.05.21"]
[Round "-"]
[White "TheSmoulderingMaster"]
[Black "GMHarry-youtube"]
[Result "0-1"]
[WhiteElo "1638"]
[BlackElo "2030"]
[TimeControl "300"]
[EndTime "4:55:56 PDT"]
[Termination "GMHarry-youtube won by resignation"]

1. e4 {[%clk 0:04:58.8]} 1... c5 {[%clk 0:04:56.3]} 2. Nf3 {[%clk 0:04:56.5]}
2... d6 {[%clk 0:04:55.1]} 3. d4 {[%clk 0:04:55.7]} 3... cxd4 {[%clk 0:04:55]}
4. Nxd4 {[%clk 0:04:55]} 4... Nf6 {[%clk 0:04:54.3]} 5. Nc3 {[%clk 0:04:53.9]}
5... g6 {[%clk 0:04:53.6]} 6. Be3 {[%clk 0:04:52.7]} 6... Bg7 {[%clk 0:04:52.8]}
7. f3 {[%clk 0:04:51.9]} 7... O-O {[%clk 0:04:51.8]} 8. Qd2 {[%clk 0:04:51.1]}
8... Nc6 {[%clk 0:04:50.2]} 9. O-O-O {[%clk 0:04:50.1]} 9... d5 {[%clk 0:04:49]}
10. exd5 {[%clk 0:04:43.8]} 10... Nxd5 {[%clk 0:04:48.9]} 11. Nxc6 {[%clk
0:04:38.3]} 11... bxc6 {[%clk 0:04:48.8]} 12. Nxd5 {[%clk 0:04:37]} 12... cxd5
{[%clk 0:04:48.7]} 13. Bd4 {[%clk 0:04:36.2]} 13... e5 {[%clk 0:04:44.1]} 14.
Bc5 {[%clk 0:04:34.5]} 14... d4 {[%clk 0:04:41.2]} 15. h4 {[%clk 0:04:27.8]}
15... Be6 {[%clk 0:04:35.8]} 16. h5 {[%clk 0:04:24.4]} 16... Rc8 {[%clk
0:04:05.7]} 17. Bxf8 {[%clk 0:04:21.8]} 17... Qxf8 {[%clk 0:04:03.4]} 18. hxg6
{[%clk 0:04:21]} 18... hxg6 {[%clk 0:03:58.2]} 19. g4 {[%clk 0:04:13.8]} 19...
Bxa2 {[%clk 0:03:45]} 20. Qh2 {[%clk 0:04:11]} 20... Qb4 {[%clk 0:03:36.6]} 21.
Bd3 {[%clk 0:03:49]} 21... e4 {[%clk 0:03:28.4]} 22. Bxe4 {[%clk 0:03:45]} 22...
d3 {[%clk 0:03:26]} 23. Rxd3 {[%clk 0:03:23.5]} 23... Qxb2+ {[%clk 0:03:19.8]}
24. Kd2 {[%clk 0:03:22.8]} 24... Rxc2+ {[%clk 0:03:15.6]} 0-1

[Event "Live Chess"]
[Site "Chess.com"]
[Date "2023.05.21"]
[Round "-"]
[White "Missedidea"]
[Black "JoshMcK"]
[Result "0-1"]
[WhiteElo "1799"]
[BlackElo "1544"]
[TimeControl "300"]
[EndTime "4:56:02 PDT"]
[Termination "JoshMcK won on time"]

1. d4 {[%clk 0:04:58.6]} 1... d5 {[%clk 0:04:58.2]} 2. c4 {[%clk 0:04:56.9]}
2... e6 {[%clk 0:04:56.7]} 3. Nc3 {[%clk 0:04:55.1]} 3... Nf6 {[%clk 0:04:56]}
4. Bg5 {[%clk 0:04:53.8]} 4... dxc4 {[%clk 0:04:54.4]} 5. e4 {[%clk 0:04:51.3]}
5... h6 {[%clk 0:04:46]} 6. Bh4 {[%clk 0:04:49.8]} 6... Be7 {[%clk 0:04:44.6]}
7. Bxc4 {[%clk 0:04:44.9]} 7... O-O {[%clk 0:04:42.7]} 8. Nf3 {[%clk 0:04:42.7]}
8... Nc6 {[%clk 0:04:40.8]} 9. O-O {[%clk 0:04:39.8]} 9... b6 {[%clk 0:04:32.9]}
10. Qd3 {[%clk 0:04:18.1]} 10... Na5 {[%clk 0:04:26]} 11. Bb5 {[%clk 0:04:11.8]}
11... a6 {[%clk 0:04:23.1]} 12. Ba4 {[%clk 0:04:09.2]} 12... b5 {[%clk
0:04:21.7]} 13. Bc2 {[%clk 0:04:07.2]} 13... c5 {[%clk 0:04:19.2]} 14. e5 {[%clk
0:04:01.2]} 14... c4 {[%clk 0:04:13.3]} 15. Qd2 {[%clk 0:03:46.7]} 15... Nd5
{[%clk 0:04:08.7]} 16. Bxe7 {[%clk 0:03:32.7]} 16... Nxe7 {[%clk 0:04:06.9]} 17.
Ne4 {[%clk 0:03:29.4]} 17... Nac6 {[%clk 0:04:02.2]} 18. Nd6 {[%clk 0:03:24.5]}
18... Nf5 {[%clk 0:03:59.7]} 19. Bxf5 {[%clk 0:03:12.8]} 19... exf5 {[%clk
0:03:59.6]} 20. Rad1 {[%clk 0:02:58]} 20... Ne7 {[%clk 0:03:47]} 21. d5 {[%clk
0:02:49.7]} 21... Ng6 {[%clk 0:03:43]} 22. Qc3 {[%clk 0:02:38.7]} 22... Nf4
{[%clk 0:03:36.9]} 23. Rfe1 {[%clk 0:02:30.5]} 23... a5 {[%clk 0:03:17.5]} 24.
Qd4 {[%clk 0:02:12.5]} 24... Ng6 {[%clk 0:03:10.3]} 25. Nxb5 {[%clk 0:02:08.9]}
25... Ba6 {[%clk 0:03:00.5]} 26. Nd6 {[%clk 0:02:04.3]} 26... Rb8 {[%clk
0:02:53]} 27. Nxf5 {[%clk 0:02:00.1]} 27... Ne7 {[%clk 0:02:44.8]} 28. Nd6
{[%clk 0:01:52.8]} 28... Nc8 {[%clk 0:02:38.8]} 29. Nf5 {[%clk 0:01:41.3]} 29...
Ne7 {[%clk 0:02:12.7]} 30. g4 {[%clk 0:01:38.9]} 30... Nxf5 {[%clk 0:02:09.5]}
31. gxf5 {[%clk 0:01:36.6]} 31... Qd7 {[%clk 0:01:57.4]} 32. Qf4 {[%clk
0:01:25.1]} 32... Qd8 {[%clk 0:01:47]} 33. f6 {[%clk 0:01:21.2]} 33... Rxb2
{[%clk 0:01:27.5]} 34. Qg3 {[%clk 0:01:08]} 34... g6 {[%clk 0:01:17.2]} 35. Nh4
{[%clk 0:01:03.1]} 35... Kh7 {[%clk 0:01:07]} 36. e6 {[%clk 0:00:53.7]} 36...
fxe6 {[%clk 0:01:02.9]} 37. dxe6 {[%clk 0:00:48.1]} 37... Qxf6 {[%clk
0:00:58.1]} 38. Rd7+ {[%clk 0:00:43.6]} 38... Kg8 {[%clk 0:00:52.6]} 39. f4
{[%clk 0:00:33]} 39... g5 {[%clk 0:00:33.2]} 40. f5 {[%clk 0:00:22.1]} 40...
Rxa2 {[%clk 0:00:19.3]} 41. Ng6 {[%clk 0:00:19.8]} 41... Re8 {[%clk 0:00:15.7]}
42. Rf7 {[%clk 0:00:12.8]} 42... Qd4+ {[%clk 0:00:10.7]} 43. Qe3 {[%clk
0:00:05.2]} 43... Qxe3+ {[%clk 0:00:07.7]} 44. Rxe3 {[%clk 0:00:02.8]} 44...
Ra1+ {[%clk 0:00:07.3]} 45. Kf2 {[%clk 0:00:00.4]} 45... Ra2+ {[%clk 0:00:06.5]}
0-1